bitfinex-derivatives/quotes_ETHF0:USTF0_20250331
["timestamp","ask_amount","ask_price","bid_price","bid_amount"]
[1743387070220,3.91745,1812.3,1812.2,0.00827882]
[1743387070715,1.10402,1811.7,1811.6,3.7598]
[1743387070919,1.10402,1811.7,1811.6,1.9351]
[1743387071113,1.1041,1811.6,1811.4,7.1848]
[1743387071319,1.1041,1811.6,1811.5,1.10414]
[1743387071320,1.3566,1811.6,1811.5,1.10414]
[1743387071516,1.3566,1811.6,1811.5,2.55334]
[1743387072724,2.46068,1811.6,1811.5,1.4492]
[1743387073114,1.3566,1811.6,1811.5,1.4492]
[1743387073318,1.3566,1811.6,1811.4,4.32025882]
[1743387073629,1.3566,1811.6,1811.5,1.4492]
[1743387074023,2.46068,1811.6,1811.5,1.4492]
[1743387074225,1.3566,1811.6,1811.5,2.55334]
[1743387074721,1.3566,1811.6,1811.5,1.4492]
[1743387074919,2.46069,1811.6,1811.4,4.32027882]
[1743387075113,2.46072,1811.6,1811.4,3.21607882]
[1743387075420,1.4446,1811.5,1811.4,3.21607882]
[1743387075812,1.4446,1811.5,1811.4,4.32027882]
[1743387076023,1.4446,1811.5,1811.4,5.73867882]
[1743387076930,2.54874,1811.5,1811.4,0.00827882]
[1743387078927,1.10426,1811.3,1811.2,3.2078]
[1743387079327,1.10439,1811.1,1810.9,5.72837]
[1743387079828,1.3742,1811.0,1810.9,6.28117]
[1743387080024,2.1176,1811.0,1810.9,5.72837]
[1743387080218,2.1176,1811.0,1810.9,6.28117]
[1743387080420,2.1176,1811.0,1810.9,5.72837]
[1743387080820,0.7044,1811.4,1811.1,1.10436]
[1743387081122,0.7434,1811.3,1811.2,1.10432]
[1743387081426,2.1848,1811.3,1811.2,2.57972]
[1743387084532,2.1848,1811.3,1811.1,7.1838]
[1743387084737,2.52252,1811.2,1811.1,7.1838]
[1743387085529,2.52252,1811.2,1811.1,3.2078]
[1743387086024,1.4182,1811.2,1811.1,1.10438]
[1743387086521,1.4182,1811.2,1811.1,5.73078]
[1743387086718,0.7434,1811.3,1811.2,1.10432]
[1743387086921,2.1479,1811.3,1811.2,2.52292]
[1743387087118,0.00820168,1811.7,1811.2,12.41089039]
[1743387087427,2.50859,1811.6,1811.4,4.31195]
[1743387087626,1.10409,1811.6,1811.5,1.4186]
[1743387087826,1.10409,1811.6,1811.4,4.31195]
[1743387088332,1.86366168,1811.7,1811.5,1.10414]
[1743387088728,0.75960168,1811.7,1811.6,1.10408]
[1743387089429,0.00820168,1811.7,1811.6,4.31188]
[1743387089622,0.00820168,1811.7,1811.6,6.39698]
[1743387093234,0.00820168,1811.7,1811.6,6.0601]
[1743387093427,0.00820168,1811.7,1811.6,7.16418]
[1743387093629,0.00820168,1811.7,1811.6,10.37198]
[1743387093827,0.00820168,1811.7,1811.6,6.39698]
[1743387094027,0.00820168,1811.7,1811.6,10.37198]
[1743387096236,0.00820168,1811.7,1811.6,10.92398]
[1743387096627,0.00820168,1811.7,1811.6,3.7598]
[1743387096831,0.00820168,1811.7,1811.6,3.2078]
[1743387096832,1.11222168,1811.7,1811.6,3.2078]
[1743387097232,1.10414,1811.5,1811.4,12.1081]
[1743387097433,1.10414,1811.5,1811.4,13.5984]
[1743387097839,1.84094,1811.5,1811.4,13.5984]
[1743387098241,0.7368,1811.5,1811.4,14.7026]
[1743387098434,1.84094,1811.5,1811.4,3.7598]
[1743387098634,1.84094,1811.5,1811.4,3.2078]
[1743387100839,3.27944,1811.5,1811.4,3.2078]
[1743387101038,2.1753,1811.5,1811.4,4.312]
[1743387101235,0.00820168,1811.7,1811.4,3.2078]
[1743387101429,0.00820168,1811.7,1811.6,1.10408]
[1743387101636,2.55072168,1811.7,1811.6,3.2078]
[1743387101835,2.55072168,1811.7,1811.6,1.4222]
[1743387102439,1.10414,1811.5,1811.4,3.2078]
[1743387102638,1.10414,1811.5,1811.4,4.63]
[1743387102942,2.60562,1811.6,1811.4,5.73416]
[1743387103140,1.5015,1811.6,1811.5,2.52634]
[1743387103345,0.00820168,1811.7,1811.6,1.10408]
[1743387103551,0.00820168,1811.7,1811.6,2.52628]
[1743387103749,0.00820168,1811.7,1811.6,1.4222]
[1743387103942,2.61372168,1811.7,1811.6,1.4222]
[1743387104446,0.00820168,1811.7,1811.6,5.73408]
[1743387104845,0.00820168,1811.7,1811.6,6.48168]
[1743387106650,17.98807203,1812.2,1812.0,1.10384]
[1743387106945,17.24617203,1812.2,1812.1,2.49988]
[1743387107151,17.24617203,1812.2,1812.1,10.49038553]
[1743387107362,17.24617203,1812.2,1812.1,18.83868553]
[1743387107750,21.03525565,1812.5,1812.1,17.73490553]
[1743387107952,1.4984,1812.5,1812.4,1.10359]
[1743387108152,1.50667882,1812.5,1812.3,7.1798]
[1743387108457,1.50667882,1812.5,1812.4,2.56219]
[1743387109361,1.50667882,1812.5,1812.4,1.4586]
[1743387109855,2.61020882,1812.5,1812.4,1.4586]
[1743387110055,2.61020882,1812.5,1812.3,8.28341]
[1743387110257,1.10359,1812.4,1812.3,3.2078]
[1743387110453,2.54839,1812.4,1812.3,3.2078]
[1743387110851,1.10369,1812.3,1812.1,10.89784]
[1743387111058,1.3768,1812.2,1812.1,10.89784]
[1743387112872,1.3768,1812.2,1812.1,8.3483]
[1743387112873,2.48051,1812.2,1812.1,8.3483]
[1743387113065,1.10378,1812.1,1812.0,3.21607882]
[1743387113266,2.48058,1812.1,1812.0,3.21607882]
[1743387115263,1.3768,1812.1,1812.0,3.21607882]
[1743387115466,1.3768,1812.1,1812.0,4.31991882]
[1743387115665,2.48058,1812.1,1812.0,3.21607882]
[1743387115965,1.3768,1812.1,1812.0,3.21607882]
[1743387116159,1.3768,1812.1,1812.0,4.59757882]
[1743387116354,0.7409,1812.3,1812.0,4.59757882]
[1743387116560,3.22266,1812.3,1812.0,5.70137882]
[1743387116766,3.22266,1812.3,1812.1,1.10377]
[1743387116968,3.22266,1812.3,1812.2,1.3701]
[1743387117168,2.119,1812.3,1812.2,2.47381]
[1743387117370,2.119,1812.3,1812.2,5.68161]
[1743387117871,3.22265,1812.3,1812.2,3.2078]
[1743387118068,1.10365,1812.3,1812.2,3.2078]
[1743387118367,2.59085,1812.3,1812.2,3.2078]
[1743387118568,2.59085,1812.3,1812.2,4.5779]
[1743387119157,1.10371,1812.2,1812.0,4.31989882]
[1743387119368,1.4872,1812.2,1812.1,2.47388]
[1743387120270,1.10361,1812.4,1812.1,1.3701]
[1743387120475,0.00827882,1812.5,1812.4,1.10359]
[1743387120667,0.00827882,1812.5,1812.4,3.2078]
[1743387120867,1.10359,1812.4,1812.3,1.4173]
[1743387121066,2.0664,1812.4,1812.3,1.4173]
[1743387121379,0.00827882,1812.5,1812.4,1.10359]
[1743387121667,0.00827882,1812.5,1812.4,4.31139]
[1743387121874,0.00827882,1812.5,1812.4,8.28039]
[1743387122074,0.00827882,1812.5,1812.4,9.69769]
[1743387122873,0.00827882,1812.5,1812.4,5.72869]
[1743387123072,0.00827882,1812.5,1812.4,9.69769]
[1743387123375,0.00827882,1812.5,1812.4,16.78293579]
[1743387124279,17.24617203,1812.9,1812.8,1.10335]
[1743387124469,17.24617203,1812.9,1812.8,4.31115]
[1743387124968,17.24617203,1812.9,1812.8,5.66725]
[1743387125568,2.0843,1813.2,1813.1,1.10317]
[1743387126168,2.0843,1813.2,1813.0,3.21607882]
[1743387126371,2.0843,1813.2,1813.1,1.4086]
[1743387126571,2.0843,1813.2,1813.0,3.21607882]
[1743387126572,5.2921,1813.2,1813.0,0.00827882]
[1743387126771,10.5499,1813.2,1812.2,0.7403]
[1743387126983,1.1036,1812.4,1812.3,3.2078]
[1743387127167,1.10369,1812.3,1812.1,3.2078]
[1743387127369,1.4995,1812.2,1812.1,1.10378]
[1743387127576,0.7206,1812.3,1812.2,1.10371]
[1743387128479,2.2201,1812.3,1812.2,1.10371]
[1743387128973,2.2201,1812.3,1812.1,3.94927882]
[1743387128974,3.32377,1812.3,1812.1,5.05301882]
[1743387129179,2.2201,1812.3,1812.2,1.10371]
[1743387129379,2.2201,1812.3,1812.1,3.21607882]
[1743387129682,3.32379,1812.3,1812.1,0.00827882]
[1743387130181,1.10371,1812.2,1812.1,0.00827882]
[1743387130377,3.18131,1812.2,1812.1,0.00827882]
[1743387131479,2.0776,1812.2,1812.1,1.11205882]
[1743387131881,2.0776,1812.2,1812.1,4.31985882]
[1743387134080,0.7206,1812.3,1812.2,1.10371]
[1743387134479,3.32477,1812.3,1812.1,8.28681882]
[1743387134782,3.32476,1812.3,1812.1,4.31981882]
[1743387134985,2.0903,1812.2,1812.1,4.31981882]
[1743387135881,2.0903,1812.2,1812.1,3.21607882]
[1743387136673,2.0903,1812.2,1812.1,4.31985882]
[1743387136877,2.0903,1812.2,1812.1,3.21607882]
[1743387137581,0.7206,1812.3,1812.2,1.10371]
[1743387137981,0.00827882,1812.4,1812.3,1.10365]
[1743387138281,0.00827882,1812.4,1812.3,4.31145]
[1743387139685,1.4236,1812.8,1812.3,11.55187529]
[1743387139879,1.4236,1812.8,1812.7,1.10341]
[1743387140078,0.7088,1812.8,1812.7,1.10341]
[1743387140684,0.7088,1812.8,1812.7,2.55531]
[1743387141183,1.4227,1812.9,1812.7,2.55531]
[1743387141184,1.4227,1812.9,1812.8,1.10335]
[1743387141384,1.4227,1812.9,1812.8,2.54285]
[1743387143588,3.2078,1813.1,1812.9,1.10325]
[1743387143890,4.31097,1813.1,1813.0,1.4395]
[1743387144088,1.10325,1813.0,1812.8,4.31112]
[1743387144387,2.58405,1813.0,1812.9,1.3847]
[1743387144890,1.4808,1813.0,1812.6,3.2078]
[1743387145191,3.30112,1812.9,1812.7,1.10338]
[1743387145383,1.4808,1812.8,1812.7,2.48808]
[1743387146684,3.2078,1813.1,1813.0,1.10323]
[1743387146880,2.1941,1813.2,1813.1,1.10317]
[1743387147086,1.4808,1813.2,1813.1,2.47597]
[1743387147388,21.31739565,1813.5,1813.3,1.10299]
[1743387147590,1.5014,1813.4,1813.3,1.10299]
[1743387148690,1.5014,1813.4,1813.3,2.47579]
[1743387148993,2.60438,1813.4,1813.3,1.3728]
[1743387149690,1.10304,1813.3,1813.2,3.21607882]
[1743387149888,2.60444,1813.3,1813.2,0.00827882]
[1743387150390,1.5014,1813.3,1813.2,1.11138882]
[1743387150587,2.60444,1813.3,1813.2,1.46017882]
[1743387150890,2.60444,1813.3,1813.2,0.00827882]
[1743387152590,1.5014,1813.3,1813.2,1.11138882]
[1743387154498,1.78057,1813.5,1813.2,0.00827882]
[1743387154691,1.4525,1813.4,1813.3,1.103]
[1743387154879,1.4525,1813.4,1813.3,2.5165]
[1743387157298,2.55548,1813.4,1813.3,1.4135]
[1743387157684,1.4525,1813.4,1813.3,2.51654]
[1743387158798,2.55548,1813.4,1813.3,1.4135]
[1743387159196,1.10304,1813.3,1813.2,0.00827882]
[1743387159391,2.50894,1813.3,1813.2,0.00827882]
[1743387161893,2.50894,1813.3,1812.5,0.64797022]
[1743387161894,1.10347,1812.6,1812.5,3.2078]
[1743387162101,1.10361,1812.4,1812.2,4.31146]
[1743387162301,1.10361,1812.4,1812.2,5.76466]
[1743387162599,2.51005,1812.3,1812.2,1.4532]
[1743387162798,1.4064,1812.3,1812.2,1.4532]
[1743387163006,1.4064,1812.3,1812.2,5.76471]
[1743387163303,2.51005,1812.3,1812.2,1.4532]
[1743387163509,1.4064,1812.3,1812.2,5.76471]
[1743387164006,1.4064,1812.3,1812.2,2.55691]
[1743387164303,1.4064,1812.3,1812.2,5.76471]
[1743387164601,1.4064,1812.3,1812.2,1.4532]
[1743387164995,2.51005,1812.3,1812.2,1.4532]
[1743387165395,1.10371,1812.2,1812.1,0.00827882]
[1743387165602,2.57191,1812.2,1812.1,0.00827882]
[1743387170411,2.57191,1812.2,1812.1,1.50767882]
[1743387170603,1.11186882,1812.4,1812.2,1.10367]
[1743387170810,0.00827882,1812.4,1812.3,2.60305]
[1743387171012,19.00818851,1812.6,1812.5,1.10353]
[1743387171013,17.20337851,1812.6,1812.5,1.10353]
[1743387171204,18.68017851,1812.6,1812.5,1.10353]
[1743387171512,17.20337851,1812.6,1812.4,5.4375]
[1743387171701,17.20337851,1812.6,1812.5,2.57433]
[1743387172114,17.20337851,1812.6,1812.5,1.4708]
[1743387172719,17.20337851,1812.6,1812.5,2.57433]
[1743387173814,2.51876,1812.8,1812.6,1.10345]
[1743387174009,2.51876,1812.8,1812.7,1.4708]
[1743387174514,1.4154,1812.8,1812.7,2.57421]
[1743387174903,1.10331,1812.9,1812.7,2.57419]
[1743387175101,1.10329,1812.9,1812.7,1.4708]
[1743387175308,1.10329,1812.9,1812.7,2.57419]
[1743387175605,1.4257,1813.0,1812.8,1.10334]
[1743387175606,2.52897,1813.0,1812.8,1.10334]
[1743387175811,2.52897,1813.0,1812.9,1.431]
[1743387176012,1.4257,1813.0,1812.6,3.7598]
[1743387176214,1.10341,1812.7,1812.5,1.431]
[1743387176514,1.10347,1812.6,1812.5,1.431]
[1743387176715,1.10345,1812.7,1812.5,1.431]
[1743387177013,1.10347,1812.6,1812.5,1.431]
[1743387177416,7.39162,1813.0,1812.5,1.431]
[1743387177811,1.10347,1812.6,1812.5,1.431]
[1743387178520,1.10345,1812.7,1812.5,1.431]
[1743387178713,1.4412,1812.6,1812.5,2.53453]
[1743387180115,2.54467,1812.6,1812.5,1.431]
[1743387180315,1.4412,1812.6,1812.5,2.53453]
[1743387181013,1.10337,1812.8,1812.6,1.10343]
[1743387181214,1.3767,1812.9,1812.6,3.2078]
[1743387181512,1.3767,1812.9,1812.4,3.2078]
[1743387181513,1.10353,1812.5,1812.4,3.2078]
[1743387181709,3.2078,1812.6,1812.1,3.90407882]
[1743387181912,1.10368,1812.3,1812.1,3.90407882]
[1743387182107,1.10368,1812.3,1812.2,1.4661]
[1743387182303,1.10371,1812.2,1812.1,3.21607882]
[1743387182508,1.10371,1812.2,1812.1,0.00827882]
[1743387184516,1.10371,1812.2,1811.9,3.2078]
[1743387184517,1.10384,1812.0,1811.9,3.2078]
[1743387185209,1.85004,1812.0,1811.9,3.2078]
[1743387186214,4.35004,1812.0,1811.9,3.2078]
[1743387186610,6.454,1812.0,1811.4,3.2078]
[1743387186811,1.10414,1811.5,1811.4,4.6677]
[1743387187011,1.10414,1811.5,1811.4,1.4599]
[1743387187411,2.50194,1811.5,1811.4,1.4599]
[1743387189625,1.1042,1811.4,1811.3,0.00827882]
[1743387189815,2.481,1811.4,1811.3,0.00827882]
[1743387194224,1.10451,1810.9,1810.6,1.10464]
[1743387194522,1.10449,1811.0,1810.7,1.4475]
[1743387194721,1.10449,1811.0,1810.7,2.55208]
[1743387194925,1.10449,1811.0,1810.7,2.55209]
[1743387195116,1.10451,1810.9,1810.8,1.4475]
[1743387195320,2.52051,1810.9,1810.8,1.4475]
[1743387195515,1.416,1810.9,1810.8,1.4475]
[1743387196119,2.52051,1810.9,1810.8,1.4475]
[1743387196621,1.416,1810.9,1810.8,1.4475]
[1743387197127,2.52051,1810.9,1810.8,1.4475]
[1743387197731,1.11275882,1811.0,1810.8,2.55202]
[1743387198030,1.11275882,1811.0,1810.9,1.4551]
[1743387199026,1.11275882,1811.0,1810.7,1.11286882]
[1743387199027,1.10457,1810.8,1810.7,0.00827882]
[1743387199321,1.10457,1810.8,1810.7,1.50507882]
[1743387199527,1.10457,1810.8,1810.7,0.00827882]
[1743387199927,2.56577,1810.8,1810.7,0.00827882]
[1743387200326,6.45627,1810.8,1810.7,0.00827882]
[1743387200529,1.10475,1810.5,1810.4,1.4968]
[1743387201430,1.4612,1810.7,1810.4,1.4968]
[1743387201732,1.10475,1810.5,1810.4,1.4968]
[1743387203320,1.10481,1810.4,1810.3,0.00827882]
[1743387203525,3.23021,1810.4,1810.3,0.00827882]
[1743387203818,3.23021,1810.4,1809.8,1.2788]
[1743387203819,1.10507,1810.0,1809.5,9.72953003]
[1743387204021,1.3987,1809.9,1809.8,2.52126]
[1743387204221,1.3987,1809.9,1809.8,1.10516]
[1743387204829,1.10502,1810.1,1809.8,1.10512]
[1743387205031,0.00827882,1810.0,1809.9,1.1051]
[1743387205832,0.00827882,1810.0,1809.8,1.10514]
[1743387206530,0.00827882,1810.0,1809.7,1.11348882]
[1743387206728,1.10512,1809.9,1809.7,1.11348882]
[1743387206932,1.11337882,1810.0,1809.7,1.11348882]
[1743387207135,0.00827882,1810.0,1809.7,0.00827882]
[1743387207435,0.00827882,1810.0,1809.9,1.10512]
[1743387207620,1.38757882,1810.0,1809.8,1.10514]
[1743387207826,2.49263882,1810.0,1809.8,1.10514]
[1743387208222,1.10518,1809.8,1809.7,0.00827882]
[1743387208826,2.47958,1809.8,1809.7,0.00827882]
[1743387209529,5.68738,1809.8,1809.7,0.00827882]
[1743387212630,9.64738,1809.8,1809.7,0.00827882]
[1743387213143,1.10542,1809.4,1809.3,28.3306]
[1743387213329,11.30522,1809.8,1809.3,28.3306]
[1743387213632,1.10542,1809.4,1809.3,28.3306]
[1743387213830,1.10542,1809.4,1809.3,29.43608]
[1743387214031,1.10541,1809.5,1809.3,29.43608]
[1743387214834,1.4189,1809.5,1809.3,29.43608]
[1743387215136,1.4189,1809.5,1809.4,1.10542]
[1743387215335,2.52428,1809.5,1809.3,29.43604]
[1743387216239,2.52432,1809.4,1809.3,28.3306]
[1743387216435,1.10548,1809.3,1809.2,0.00551927]
[1743387216638,3.94558,1809.3,1809.2,0.00551927]
[1743387222042,3.25258,1809.3,1809.2,0.00551927]
[1743387224240,3.25258,1809.3,1809.2,1.46741927]
[1743387224645,3.25258,1809.3,1809.2,0.00551927]
[1743387227751,7.1688,1809.8,1809.2,2.76935927]
[1743387228050,1.10541,1809.5,1809.3,4.31326]
[1743387228247,1.10542,1809.4,1809.3,5.3758]
[1743387228546,1.10542,1809.4,1809.3,3.9559]
[1743387228946,1.10541,1809.5,1809.3,5.06138]
[1743387229142,1.10541,1809.5,1809.4,1.10542]
[1743387229540,1.10541,1809.5,1809.3,5.06134]
[1743387229741,1.10534,1809.6,1809.4,1.1054]
[1743387229942,1.4523,1809.5,1809.4,1.1054]
[1743387230142,1.10532,1809.6,1809.4,1.1054]
[1743387230344,2.55759,1809.7,1809.5,1.10536]
[1743387230535,1.1053,1809.6,1809.4,1.10538]
[1743387230739,1.10532,1809.6,1809.4,1.10538]
[1743387231140,3.2078,1809.6,1809.3,0.7481]
[1743387231341,3.2078,1809.6,1809.4,1.10542]
[1743387231540,1.10536,1809.5,1809.3,1.85353]
[1743387231746,4.31315,1809.6,1809.4,1.10542]
[1743387232445,3.2078,1809.6,1809.3,0.7481]
[1743387232646,1.10539,1809.5,1809.3,0.7481]
[1743387232841,3.2078,1809.6,1809.3,0.7481]
[1743387233351,1.1054,1809.5,1809.3,1.85358]
[1743387233846,4.31314,1809.6,1809.4,1.10542]
[1743387234051,3.2078,1809.6,1809.5,1.10536]
[1743387234351,1.4381,1809.7,1809.3,3.9559]
[1743387234748,3.2078,1809.8,1809.3,6.71957]
[1743387234945,3.2078,1809.8,1809.4,7.12950522]
[1743387235142,3.2078,1809.8,1809.7,1.10524]
[1743387235343,3.2078,1809.8,1809.4,7.12950522]
[1743387235645,1.10531,1809.6,1809.4,1.10538]
[1743387236246,2.56198,1809.7,1809.5,1.10536]
[1743387236950,1.10536,1809.5,1809.4,1.10538]
[1743387237255,3.2078,1809.8,1809.4,1.10542]
[1743387237256,5.76986,1809.6,1809.4,1.10542]
[1743387237655,1.10536,1809.5,1809.3,1.85354]
[1743387237846,2.56206,1809.5,1809.3,1.85354]
[1743387238153,3.2078,1809.6,1809.5,1.10536]
[1743387239553,4.3131,1809.6,1809.5,1.10536]
[1743387239758,3.2078,1809.6,1809.5,1.10536]
[1743387240957,4.3131,1809.6,1809.5,1.10536]
[1743387241255,3.2078,1809.6,1809.5,1.10536]
[1743387241962,5.7748,1809.8,1809.6,1.10525]
[1743387242146,5.7748,1809.8,1809.7,1.5029]
[1743387242346,4.6696,1809.8,1809.7,2.60814]
[1743387242557,3.2078,1809.8,1809.7,2.60814]
[1743387242747,2.76343,1809.5,1809.2,8.35381927]
[1743387242947,1.10567,1809.0,1808.9,1.99110576]
[1743387243147,5.97153,1809.3,1808.5,2.69530576]
[1743387243148,1.10588,1808.7,1808.5,2.69530576]
[1743387243349,1.10591,1808.6,1808.5,2.69530576]
[1743387243554,1.10589,1808.7,1808.5,2.69530576]
[1743387243756,4.31361,1808.8,1808.5,0.7042]
[1743387243961,3.2078,1808.8,1808.5,0.7042]
[1743387244161,3.21607882,1808.8,1808.5,0.7042]
[1743387244462,3.21607882,1808.8,1808.1,14.67536591]
[1743387244463,3.2078,1808.6,1807.9,3.2078]
[1743387244662,1.10613,1808.3,1807.9,8.27213]
[1743387245155,1.10609,1808.4,1808.0,1.10627]
[1743387245362,1.10609,1808.4,1808.0,8.42609241]
[1743387245765,3.2078,1808.7,1808.1,4.6319]
[1743387245964,1.10593,1808.6,1808.2,5.79272]
[1743387246167,1.10597,1808.6,1808.3,1.4241]
[1743387246565,1.10596,1808.6,1808.3,1.4241]
[1743387246765,4.6997,1808.7,1808.3,1.4241]
[1743387247063,3.2078,1808.7,1808.4,1.10599]
[1743387247263,1.1059,1808.7,1808.5,1.4241]
[1743387247659,1.11408882,1808.8,1808.6,0.7407]
[1743387247856,1.11408882,1808.8,1808.7,1.4133]
[1743387249367,2.57848882,1808.8,1808.7,1.4133]
[1743387255264,1.11408882,1808.8,1808.7,1.4133]
[1743387255470,0.00827882,1808.8,1808.7,1.4133]
[1743387255669,1.11406882,1808.8,1808.7,3.27135]
[1743387255975,1.11406882,1808.8,1808.7,2.1655]
[1743387256873,4.32186882,1808.8,1808.7,1.4133]
[1743387257180,5.75296882,1808.8,1808.7,1.4133]
[1743387257678,2.54516882,1808.8,1808.7,1.4133]
[1743387258781,1.10585,1808.7,1808.6,0.7407]
[1743387258974,1.10601,1808.5,1808.3,4.31385]
[1743387259174,1.10601,1808.5,1808.4,1.4971]
[1743387259375,21.64825565,1808.7,1808.4,2.60313]
[1743387259678,1.10597,1808.5,1808.4,1.4971]
[1743387260285,1.10597,1808.5,1808.4,2.60313]
[1743387260672,1.10597,1808.5,1808.4,1.4971]
[1743387261381,1.82037,1808.5,1808.4,1.4971]
[1743387261574,3.20217,1808.5,1808.4,1.4971]
[1743387262185,3.20217,1808.5,1808.3,4.6737]
[1743387262186,1.10603,1808.4,1808.3,0.7167]
[1743387262482,2.48783,1808.4,1808.3,0.7167]
[1743387262685,2.48783,1808.4,1808.3,2.1783]
[1743387263684,2.48783,1808.4,1808.3,1.4616]
[1743387264293,1.82039,1808.5,1808.3,2.56765]
[1743387264788,3.21299,1808.5,1808.4,1.4616]
[1743387265176,2.107,1808.5,1808.4,2.56763]
[1743387265375,3.21297,1808.5,1808.4,1.4616]
[1743387265582,2.107,1808.5,1808.4,1.4616]
[1743387265779,3.21297,1808.5,1808.4,1.4616]
[1743387267384,21.51004069,1808.6,1808.4,2.56763]
[1743387267587,19.67154069,1808.6,1808.4,2.56763]
[1743387267788,19.67154069,1808.6,1808.5,1.3762]
[1743387269174,20.38974069,1808.6,1808.5,1.3762]
[1743387270585,1.10604,1808.4,1808.2,10.14512]
[1743387270786,1.10604,1808.4,1808.3,2.52559]
[1743387270983,1.4569,1808.5,1808.3,2.52559]
[1743387270984,2.56292,1808.5,1808.3,2.52559]
[1743387271185,1.10609,1808.3,1808.2,8.3483]
[1743387271381,4.31389,1808.3,1808.2,8.3483]
[1743387271683,1.10622,1808.2,1808.0,3.25188]
[1743387271881,3.28652,1808.2,1808.1,1.4868]
[1743387272993,1.10599,1808.5,1808.1,1.4868]
[1743387273184,1.10604,1808.4,1808.2,1.10611]
[1743387273385,1.4358,1808.5,1808.3,1.4868]
[1743387273689,19.04674069,1808.6,1808.4,1.10601]
[1743387273889,20.48254069,1808.6,1808.5,1.4868]
[1743387274083,19.04674069,1808.6,1808.5,1.4868]
[1743387278194,17.94081069,1808.6,1808.5,2.59277]
[1743387278396,13.93324135,1808.6,1808.5,19.31091236]
[1743387279287,13.93324135,1808.6,1808.5,27.65921236]
[1743387280295,13.93324135,1808.6,1808.5,23.70421236]
[1743387280492,13.93324135,1808.6,1808.5,25.15921236]
[1743387282189,0.00827882,1808.8,1808.7,1.10585]
[1743387283100,0.00827882,1808.8,1808.7,1.82285]
[1743387284601,0.00827882,1808.8,1808.7,12.22112024]
[1743387284996,0.00827882,1808.8,1808.7,13.61642024]
[1743387287997,0.00827882,1808.8,1808.7,17.56942024]
[1743387289005,0.00827882,1808.8,1808.7,25.91772024]
[1743387290105,0.00827882,1808.8,1808.7,21.96472024]
[1743387290699,0.00827882,1808.8,1808.7,25.91772024]
[1743387290904,0.00827882,1808.8,1808.7,21.96472024]
[1743387291108,0.00827882,1808.8,1808.7,25.91672024]
[1743387291503,0.00827882,1808.8,1808.7,21.96472024]
[1743387291703,22.74465565,1809.1,1809.0,1.10567]
[1743387291704,19.53685565,1809.1,1809.0,1.10567]
[1743387292007,19.53685565,1809.1,1809.0,5.05767]
[1743387292196,19.53685565,1809.1,1809.0,12.25258224]
[1743387292401,19.53685565,1809.1,1809.0,13.69218224]
[1743387292808,19.53685565,1809.3,1809.2,1.10554]
[1743387293707,19.53685565,1809.3,1809.2,2.58984]
[1743387294215,19.53685565,1809.3,1809.2,3.14264]
[1743387294502,19.53685565,1809.3,1809.2,10.37627238]
[1743387294911,19.53685565,1809.3,1809.2,11.09277238]
[1743387295514,19.53685565,1809.3,1809.2,10.53997238]
[1743387295705,20.91425565,1809.3,1809.2,7.25834]
[1743387296010,20.91425565,1809.3,1809.2,6.54184]
[1743387297511,19.53685565,1809.3,1809.2,6.54184]
[1743387297814,19.53685565,1809.3,1809.2,13.69834516]
[1743387298602,0.00827882,1809.4,1809.3,1.10548]
[1743387298806,0.00827882,1809.4,1809.3,5.80888]
[1743387299007,0.00827882,1809.4,1809.3,13.13355497]
[1743387300520,0.00827882,1809.4,1809.3,13.85885497]
[1743387301418,0.00827882,1809.4,1809.3,22.20715497]
[1743387304121,0.00827882,1809.4,1809.3,49.80715497]
[1743387307020,0.00827882,1809.4,1809.3,18.27405497]
[1743387307221,0.00827882,1809.4,1809.3,25.43085497]
[1743387307425,0.00827882,1809.4,1809.3,5.05448]
[1743387307619,1.43437882,1809.4,1809.3,5.05448]
[1743387307923,1.43437882,1809.4,1809.3,1.10548]
[1743387308620,2.53982882,1809.4,1809.0,11.5561]
[1743387308825,2.53984882,1809.4,1809.1,1.10559]
[1743387309013,1.399,1809.3,1809.2,1.10554]
[1743387310725,1.399,1809.3,1809.2,4.31334]
[1743387311027,0.00827882,1809.4,1809.3,1.10548]
[1743387311225,1.399,1809.5,1809.4,1.10542]
[1743387311427,1.399,1809.5,1809.4,4.31322]
[1743387311625,1.399,1809.5,1809.4,12.77472668]
[1743387312022,1.399,1809.5,1809.4,21.12302668]
[1743387313529,0.75337882,1809.6,1809.5,1.10536]
[1743387313821,0.75337882,1809.6,1809.5,3.16686]
[1743387314029,0.75337882,1809.6,1809.5,10.24149122]
[1743387318418,0.75337882,1809.6,1809.5,18.58979122]
[1743387321619,19.53685565,1810.1,1810.0,1.10506]
[1743387321929,19.53685565,1810.1,1810.0,4.31286]
[1743387323026,19.53685565,1810.1,1810.0,21.16337482]
[1743387323219,19.53685565,1810.1,1810.0,21.89537482]
[1743387324125,19.53685565,1810.1,1810.0,25.84037482]
[1743387324929,0.00827882,1810.2,1810.1,1.10499]
[1743387325132,0.00827882,1810.2,1810.1,2.49719]
[1743387325332,0.00827882,1810.2,1810.1,9.8071293]
[1743387326833,19.53685565,1810.7,1810.6,1.10469]
[1743387327023,19.53685565,1810.7,1810.6,5.04869]
[1743387327730,19.53685565,1810.7,1810.6,15.45594387]
[1743387328223,19.53685565,1810.7,1810.6,16.92044387]
[1743387328425,19.53685565,1810.7,1810.6,25.26874387]
[1743387328729,21.6474874,1810.8,1810.7,1.10463]
[1743387328730,17.89908431,1810.8,1810.7,1.10463]
[1743387328930,17.89908431,1810.8,1810.7,2.56913]
[1743387328931,9.73486836,1810.8,1810.7,2.56913]
[1743387329132,1.4101,1811.3,1811.2,1.10432]
[1743387329437,1.4101,1811.3,1811.2,5.04732]
[1743387329637,1.4101,1811.3,1811.1,4.31214]
[1743387329837,0.7275,1811.2,1811.0,8.3483]
[1743387330035,0.7275,1811.2,1811.1,3.943]